fUSD/lending_fUSD_20260628
["ID","MTS","AMOUNT","RATE_DAILY","PERIOD"]
[426567693,1782597049000,-151.0,0.00035,7]
[426567716,1782597049000,-235.77005,0.00035,7]
[426567695,1782597049000,-151.0,0.00035,7]
[426567694,1782597049000,-151.0,0.00035,7]
[426567696,1782597049000,-151.0,0.00035,7]
[426567697,1782597049000,-151.0,0.00035,7]
[426567698,1782597049000,-151.0,0.00035,7]
[426567699,1782597049000,-151.0,0.00035,7]
[426567700,1782597049000,-151.0,0.00035,7]
[426567701,1782597049000,-157.133539,0.00035,7]
[426567692,1782597049000,-151.0,0.00035,7]
[426567706,1782597049000,-1349.829094,0.00035,7]
[426567702,1782597049000,-157.133539,0.00035,7]
[426567714,1782597049000,-189.449642,0.00035,7]
[426567712,1782597049000,-189.449642,0.00035,7]
[426567713,1782597049000,-189.449642,0.00035,7]
[426567711,1782597049000,-189.449642,0.00035,7]
[426567710,1782597049000,-151.0,0.00035,7]
[426567709,1782597049000,-151.0,0.00035,7]
[426567707,1782597049000,-1349.829094,0.00035,7]
[426567704,1782597049000,-157.133539,0.00035,7]
[426567705,1782597049000,-1349.829094,0.00035,7]
[426567703,1782597049000,-157.133539,0.00035,7]
[426567708,1782597049000,-1349.829094,0.00035,7]
[426567762,1782597050000,-200.0,0.000352,14]
[426567757,1782597050000,-170.11072308,0.000351,120]
[426567763,1782597050000,-526.0,0.00035212,3]
[426567761,1782597050000,-164.57,0.0003518,30]
[426567759,1782597050000,-2000.0,0.00035112,7]
[426567760,1782597050000,-329.7177758,0.00035138,2]
[426567755,1782597050000,-727.73675403,0.00035059,2]
[426567754,1782597050000,-269.86225,0.00035037,7]
[426567751,1782597050000,-151.0,0.00035,7]
[426567758,1782597050000,-186.65241838,0.000351,120]
[426567752,1782597050000,-151.0,0.00035,7]
[426567753,1782597050000,-151.0,0.00035,7]
[426567750,1782597050000,-151.0,0.00035,7]
[426567749,1782597050000,-243.575451,0.00035,7]
[426567748,1782597050000,-151.0,0.00035,7]
[426567746,1782597050000,-151.0,0.00035,7]
[426567747,1782597050000,-151.0,0.00035,7]
[426567765,1782597050000,-680.32607036,0.00035257,2]
[426567756,1782597050000,-158.43334795,0.00035092,3]
[426567764,1782597050000,-156.0,0.00035238,10]
[426567773,1782597050000,-1572.94,0.00035363,30]
[426567767,1782597050000,-685.78946479,0.000353,2]
[426567786,1782597050000,-144.19818825,0.00027397,10]
[426567787,1782597050000,-184.22176666,0.000354,14]
[426567785,1782597050000,-665.49377145,0.00027397,10]
[426567784,1782597050000,-114.3780403,0.00027397,10]
[426567782,1782597050000,-182.65552685,0.000199,2]
[426567781,1782597050000,-347.02477264,0.000354,14]
[426567780,1782597050000,-872.85530347,0.000354,14]
[426567779,1782597050000,-1195045.25214669,0.000354,14]
[426567778,1782597050000,-236.69,0.000354,2]
[426567783,1782597050000,-156.45618947,0.00024776,2]
[426567776,1782597050000,-158.43334795,0.00035365,3]
[426567777,1782597050000,-222.88255222,0.0003539,2]
[426567768,1782597050000,-4676.73887453,0.000353,2]
[426567770,1782597050000,-286.4,0.0003536,2]
[426567771,1782597050000,-282.18,0.0003536,2]
[426567766,1782597050000,-200.0,0.00035274,10]
[426567772,1782597050000,-961.83,0.00035362,30]
[426567774,1782597050000,-963.3,0.00035363,30]
[426567775,1782597050000,-1572.2,0.00035364,30]
[426567769,1782597050000,-227.75385249,0.00035325,2]
[426567790,1782597051000,-53928.76059819,0.000354,14]
[426567788,1782597051000,-584.84510421,0.000354,14]
[426567789,1782597051000,-250.423567,0.00031796,2]
[426567791,1782597063000,2047.31946,0.00037289,120]
[426567796,1782597193000,166.66,0.00022919,30]
[426567795,1782597193000,166.66,0.00022465,30]
[426567794,1782597193000,166.66,0.00022011,30]
[426567799,1782597224000,4000.0,0.00037299,120]
[426567801,1782597231000,1091.96,0.00031478,120]
[426567800,1782597231000,1091.96,0.00028616,120]
[426567802,1782597261000,5708.6246457,0.00037299,120]
[426567803,1782597282000,409.38769151,0.00037299,120]
[426567807,1782597335000,7028.85048624,0.00013,2]
[426567809,1782597366000,5435.35637384,0.0001305,2]
[426567811,1782597372000,500.0,0.00037299,120]
[426567813,1782597373000,591.98638104,0.00037299,120]
[426567812,1782597373000,500.0,0.00037299,120]
[426567825,1782597430000,1000.0,0.000135,2]
[426567829,1782597445000,1442.2581267,0.00037299,120]
[426567839,1782597454000,629.08967829,0.00037299,120]
[426567856,1782597464000,6958.13318536,0.0001,2]
[426567876,1782597470000,9814.59260446,9.04e-05,2]
[426567888,1782597484000,449.705026,0.00037287,120]
[426567890,1782597573000,172.47,0.00025036,120]
[426567897,1782597796000,4218.38549588,0.0003729,120]
[426567899,1782597956000,-151.0,0.00014905,2]
[426567900,1782597956000,-121.53374349,0.00014905,2]
[426567904,1782598039000,-151.0,0.00014905,2]
[426567905,1782598039000,-166.66,0.00014908,2]
[426567902,1782598039000,-166.66,0.00014601,2]
[426567903,1782598039000,-29.46625651,0.00014905,2]
[426567906,1782598039000,-44.15012232,0.00015108,2]
[426567909,1782598049000,-151.0,0.00015146,2]
[426567907,1782598049000,-132.73092655,0.00015108,2]
[426567910,1782598049000,-253.65280627,0.00015208,2]
[426567908,1782598049000,-152.0,0.00015117,2]
[426567916,1782598050000,-151.0,0.00015208,2]
[426567911,1782598050000,-313.45127832,0.00015208,2]
[426567912,1782598050000,-279.71816043,0.00015208,2]
[426567913,1782598050000,-168.39705265,0.00015208,2]
[426567914,1782598050000,-152.0,0.00015208,2]
[426567915,1782598050000,-208.0,0.00015208,2]
[426567917,1782598050000,-152.0,0.00015208,2]
[426567925,1782598050000,-216.51184279,0.00015302,2]
[426567919,1782598050000,-151.0,0.00015208,2]
[426567920,1782598050000,-150.0,0.00015208,2]
[426567921,1782598050000,-197.18887193,0.00015208,2]
[426567922,1782598050000,-152.0,0.00015208,2]
[426567924,1782598050000,-166.66,0.00015216,2]
[426567923,1782598050000,-150.0,0.00015208,2]
[426567926,1782598050000,-755.10740749,0.0001535,2]
[426567918,1782598050000,-150.0,0.00015208,2]
[426567927,1782598151000,-181.4657474,0.00014911,2]
[426567929,1782598163000,-329.28,0.00014911,7]
[426567930,1782598163000,-173.61365572,0.00014911,2]
[426567928,1782598163000,-18.5342526,0.00014911,2]
[426567932,1782598163000,-896.64,0.0001547,2]
[426567933,1782598163000,-474.30157394,0.00015512,2]
[426567931,1782598163000,-7.04259251,0.0001535,2]
[426567946,1782598166000,-500.0,0.00016109,2]
[426567936,1782598166000,-176.23452865,0.00015688,7]
[426567934,1782598166000,-25.69842606,0.00015512,2]
[426567935,1782598166000,-166.66,0.00015523,2]
[426567937,1782598166000,-343.73,0.00015688,2]
[426567940,1782598166000,-302.6799,0.00015908,2]
[426567938,1782598166000,-166.66,0.0001583,2]
[426567939,1782598166000,-2575.81,0.00015869,2]
[426567941,1782598166000,-217.68536207,0.00015928,2]
[426567942,1782598166000,-200.0,0.00015965,2]
[426567943,1782598166000,-160.0,0.00016,8]
[426567944,1782598166000,-600.0,0.00016061,2]
[426567947,1782598166000,-500.0,0.00016109,2]
[426567945,1782598166000,-550.0,0.00016108,2]
[426567948,1782598166000,-500.0,0.00016109,2]
[426567960,1782598166000,-160.0,0.00016209,2]
[426567961,1782598166000,-250.0,0.00016395,2]
[426567959,1782598166000,-160.0,0.00016209,2]
[426567958,1782598166000,-166.66,0.00016138,2]
[426567949,1782598166000,-500.0,0.00016109,2]
[426567956,1782598166000,-500.0,0.00016109,2]
[426567957,1782598166000,-500.0,0.00016109,2]
[426567953,1782598166000,-500.0,0.00016109,2]
[426567954,1782598166000,-500.0,0.00016109,2]
[426567950,1782598166000,-500.0,0.00016109,2]
[426567952,1782598166000,-500.0,0.00016109,2]
[426567962,1782598166000,-1430.00053694,0.00016411,2]
[426567951,1782598166000,-500.0,0.00016109,2]
[426567955,1782598166000,-500.0,0.00016109,2]
[426567963,1782598199000,250.0,0.00014,2]
[426567966,1782598231000,-151.0,0.0001547,2]
[426567967,1782598231000,-151.0,0.0001547,2]
[426567968,1782598231000,-216.51184279,0.0001547,2]
[426567969,1782598231000,-11921.07529244,0.00015908,2]
[426567971,1782598231000,-822.21968653,0.00015908,2]
[426567972,1782598231000,-390.37,0.00015908,2]
[426567970,1782598231000,-9262.90087722,0.00015908,2]
[426567974,1782598232000,-105.03813888,0.00015908,2]
[426567973,1782598232000,-3229.88370083,0.00015908,2]
[426567995,1782598238000,-500.0,0.0001641,2]
[426567986,1782598238000,-76.5976778,0.0001547,2]
[426567987,1782598238000,-73.4023222,0.0001547,2]
[426567988,1782598238000,-206.08585804,0.00015908,2]
[426567989,1782598238000,-538.715813,0.00015908,2]
[426567990,1782598238000,-302.0,0.00015908,2]
[426567991,1782598238000,-390.33717929,0.00015908,2]
[426567993,1782598238000,-300.0,0.00016,2]
[426567992,1782598238000,-88173.70525377,0.00015908,2]
[426567994,1782598238000,-500.0,0.0001641,2]
[426567997,1782598238000,-500.0,0.0001641,2]
[426567998,1782598238000,-500.0,0.0001641,2]
[426568007,1782598238000,-500.0,0.0001641,2]
[426568005,1782598238000,-500.0,0.0001641,2]
[426568006,1782598238000,-500.0,0.0001641,2]
[426568004,1782598238000,-500.0,0.0001641,2]
[426568003,1782598238000,-500.0,0.0001641,2]
[426567996,1782598238000,-500.0,0.0001641,2]
[426568000,1782598238000,-461.55788621,0.0001641,2]
[426567999,1782598238000,-500.0,0.0001641,2]
[426568001,1782598238000,-500.0,0.0001641,2]
[426568002,1782598238000,-500.0,0.0001641,2]
[426568046,1782598239000,-156.45618948,0.0001829,2]
[426568038,1782598239000,-500.0,0.00017999,2]
[426568044,1782598239000,-173.50223956,0.00018051,2]
[426568043,1782598239000,-350.0,0.00018,2]
[426568040,1782598239000,-500.0,0.00017999,2]
[426568042,1782598239000,-1212.30630841,0.00018,2]
[426568045,1782598239000,-1809.11347833,0.000181,2]
[426568041,1782598239000,-61263.82952881,0.00018,2]
[426568047,1782598239000,-236.25,0.00018291,2]
[426568051,1782598239000,-500.0,0.00019699,2]
[426568050,1782598239000,-172.47,0.00019472,2]
[426568049,1782598239000,-896.64,0.00019338,2]
[426568057,1782598239000,-500.0,0.00019699,2]
[426568052,1782598239000,-324.61635492,0.00019699,2]
[426568054,1782598239000,-221.99223399,0.00019699,2]
[426568039,1782598239000,-500.0,0.00017999,2]
[426568055,1782598239000,-500.0,0.00019699,2]
[426568058,1782598239000,-178.53204459,0.00019699,2]
[426568056,1782598239000,-603.38651112,0.00019699,2]
[426568053,1782598239000,-500.0,0.00019699,2]
[426568059,1782598239000,-500.0,0.00019699,2]
[426568061,1782598239000,-883.29575342,0.000197,2]
[426568062,1782598239000,-4259.51545997,0.000197,2]
[426568060,1782598239000,-500.0,0.00019699,2]
[426568063,1782598239000,-500.0,0.00019818,2]
[426568048,1782598239000,-12737.30749932,0.00019244,2]
[426568037,1782598239000,-12737.30749937,0.000179,2]
[426568032,1782598239000,-236.25,0.00017459,2]
[426568036,1782598239000,-236.25,0.00017875,2]
[426568065,1782598239000,-500.0,0.00019899,2]
[426568008,1782598239000,-500.0,0.0001641,2]
[426568009,1782598239000,-500.0,0.0001641,2]
[426568012,1782598239000,-500.0,0.0001641,2]
[426568010,1782598239000,-500.0,0.0001641,2]
[426568013,1782598239000,-500.0,0.0001641,2]
[426568011,1782598239000,-500.0,0.0001641,2]
[426568015,1782598239000,-500.0,0.0001641,2]
[426568014,1782598239000,-500.0,0.0001641,2]
[426568016,1782598239000,-500.0,0.0001641,2]
[426568017,1782598239000,-500.0,0.0001641,2]
[426568019,1782598239000,-500.0,0.0001641,2]
[426568035,1782598239000,-463.3,0.00017666,2]
[426568020,1782598239000,-500.0,0.0001641,2]
[426568021,1782598239000,-561.0374067,0.0001641,2]
[426568023,1782598239000,-500.0,0.0001641,2]
[426568027,1782598239000,-172.47,0.0001669,2]
[426568025,1782598239000,-13388.07946306,0.00016411,2]
[426568026,1782598239000,-236.25,0.00016628,2]
[426568024,1782598239000,-500.0,0.0001641,2]
[426568028,1782598239000,-1000.0,0.00016803,2]
[426568034,1782598239000,-40016.12,0.00017558,2]
[426568031,1782598239000,-896.64,0.00017404,2]
[426568033,1782598239000,-169.55,0.00017535,2]
[426568030,1782598239000,-175.0,0.00017219,2]
[426568029,1782598239000,-236.25,0.00017043,2]
[426568022,1782598239000,-500.0,0.0001641,2]
[426568066,1782598239000,-560.05967227,0.00019899,2]
[426568018,1782598239000,-500.0,0.0001641,2]
[426568068,1782598239000,-883.29575342,0.000199,2]
[426568096,1782598239000,-883.29575342,0.000205,2]
[426568099,1782598239000,-10830.98,0.00020548,2]
[426568100,1782598239000,-12737.30749932,0.00020589,2]
[426568101,1782598239000,-314.7127964,0.000206,2]
[426568102,1782598239000,-4259.51545997,0.000207,2]
[426568104,1782598239000,-4259.51545997,0.000209,2]
[426568105,1782598239000,-176.460318,0.00021,2]
[426568103,1782598239000,-314.7127964,0.000208,2]
[426568107,1782598239000,-232.0,0.00021,2]
[426568110,1782598239000,-169.0,0.00021,2]
[426568108,1782598239000,-382.0,0.00021,2]
[426568106,1782598239000,-163.46293274,0.00021,2]
[426568109,1782598239000,-152.0,0.00021,2]
[426568112,1782598239000,-658.0,0.00021,2]
[426568111,1782598239000,-212.0,0.00021,2]
[426568113,1782598239000,-3354.96848159,0.00021022,2]
[426568114,1782598239000,-4259.51545997,0.000211,2]
[426568115,1782598239000,-176.460318,0.000212,2]
[426568117,1782598239000,-896.64,0.00021272,2]
[426568116,1782598239000,-500.0,0.00021205,2]
[426568119,1782598239000,-4259.51545997,0.000213,2]
[426568118,1782598239000,-355.46,0.00021273,2]
[426568120,1782598239000,-176.460318,0.000214,2]
[426568122,1782598239000,-1500.0,0.00021522,2]
[426568121,1782598239000,-4259.51545997,0.000215,2]
[426568097,1782598239000,-4259.51545997,0.000205,2]
[426568098,1782598239000,-774.6704,0.00020548,2]
[426568123,1782598239000,-430.22,0.00021543,7]
[426568094,1782598239000,-314.7127964,0.000204,2]
[426568095,1782598239000,-169.55,0.00020458,2]
[426568069,1782598239000,-4259.51545997,0.000199,2]
[426568064,1782598239000,-500.0,0.00019818,2]
[426568070,1782598239000,-3354.96848166,0.000199,2]
[426568071,1782598239000,-19735.10971137,0.0001995,15]
[426568072,1782598239000,-3160.92397569,0.00019999,2]
[426568074,1782598239000,-151.0,0.0002,2]
[426568073,1782598239000,-314.7127964,0.0002,2]
[426568078,1782598239000,-1499.64918932,0.0002,5]
[426568076,1782598239000,-2972.2618254,0.0002,2]
[426568075,1782598239000,-232.0,0.0002,2]
[426568079,1782598239000,-152.0,0.0002,2]
[426568080,1782598239000,-164.08033955,0.0002,14]
[426568067,1782598239000,-500.0,0.00019899,2]
[426568081,1782598239000,-300.0,0.0002,2]
[426568077,1782598239000,-382.0,0.0002,2]
[426568092,1782598239000,-883.29575342,0.000203,2]
[426568093,1782598239000,-4259.51545997,0.000203,2]
[426568091,1782598239000,-156.45618948,0.0002029,2]
[426568090,1782598239000,-314.7127964,0.000202,2]
[426568088,1782598239000,-4259.51545997,0.000201,2]
[426568089,1782598239000,-1661.27,0.00020145,2]
[426568085,1782598239000,-658.0,0.0002,2]
[426568086,1782598239000,-156.6338673,0.0002,20]
[426568084,1782598239000,-400.0,0.0002,2]
[426568083,1782598239000,-212.0,0.0002,2]
[426568082,1782598239000,-157.0,0.0002,2]
[426568087,1782598239000,-883.29575342,0.000201,2]
[426568165,1782598240000,-152.0,0.00023,2]
[426568164,1782598240000,-382.0,0.00023,2]
[426568162,1782598240000,-498.5007132,0.00022783,2]
[426568161,1782598240000,-1852.42,0.00022581,2]
[426568157,1782598240000,-1331.34638524,0.00022366,2]
[426568160,1782598240000,-498.5007132,0.00022509,2]
[426568155,1782598240000,-172.47,0.00022254,2]
[426568158,1782598240000,-415.16,0.00022466,2]
[426568156,1782598240000,-156.45618948,0.0002229,2]
[426568159,1782598240000,-279.55,0.00022466,2]
[426568163,1782598240000,-232.0,0.00023,2]
[426568171,1782598240000,-3354.96848159,0.00023267,2]
[426568166,1782598240000,-212.0,0.00023,2]
[426568168,1782598240000,-971.402,0.00023015,7]
[426568169,1782598240000,-498.5007132,0.00023057,2]
[426568170,1782598240000,-896.64,0.00023205,2]
[426568154,1782598240000,-151.0,0.00022235,2]
[426568175,1782598240000,-498.5007132,0.00023331,2]
[426568173,1782598240000,-500.0,0.00023289,7]
[426568172,1782598240000,-12737.30749932,0.00023278,2]
[426568174,1782598240000,-500.0,0.00023289,7]
[426568176,1782598240000,-169.55,0.0002338,2]
[426568178,1782598240000,-500.0,0.00023563,7]
[426568177,1782598240000,-500.0,0.00023563,7]
[426568167,1782598240000,-658.0,0.00023,2]
[426568148,1782598240000,-151.0,0.00022235,2]
[426568145,1782598240000,-151.0,0.00022235,2]
[426568149,1782598240000,-151.0,0.00022235,2]
[426568180,1782598240000,-500.0,0.00023563,7]
[426568124,1782598240000,-176.460318,0.000216,2]
[426568128,1782598240000,-12737.30749932,0.00021933,2]
[426568126,1782598240000,-176.460318,0.000219,2]
[426568127,1782598240000,-5000.0,0.00021918,2]
[426568130,1782598240000,-382.0,0.00022,2]
[426568132,1782598240000,-17993.71752576,0.00022,4]
[426568133,1782598240000,-212.0,0.00022,2]
[426568131,1782598240000,-152.0,0.00022,2]
[426568134,1782598240000,-450.0,0.00022,2]
[426568129,1782598240000,-232.0,0.00022,2]
[426568135,1782598240000,-658.0,0.00022,2]
[426568136,1782598240000,-3354.96848159,0.00022144,2]
[426568137,1782598240000,-498.5007132,0.00022235,2]
[426568140,1782598240000,-151.0,0.00022235,2]
[426568141,1782598240000,-151.0,0.00022235,2]
[426568139,1782598240000,-151.0,0.00022235,2]
[426568143,1782598240000,-151.0,0.00022235,2]
[426568142,1782598240000,-151.0,0.00022235,2]
[426568144,1782598240000,-151.0,0.00022235,2]
[426568146,1782598240000,-151.0,0.00022235,2]
[426568151,1782598240000,-151.0,0.00022235,2]
[426568150,1782598240000,-151.0,0.00022235,2]
[426568147,1782598240000,-151.0,0.00022235,2]
[426568152,1782598240000,-151.0,0.00022235,2]
[426568153,1782598240000,-151.0,0.00022235,2]
[426568138,1782598240000,-151.0,0.00022235,2]
[426568181,1782598240000,-632.0,0.00023563,7]
[426568183,1782598240000,-158.40673533,0.00023672,2]
[426568214,1782598240000,-498.5007132,0.00024701,2]
[426568211,1782598240000,-12737.30749932,0.00024622,2]
[426568213,1782598240000,-1000.0,0.00024658,2]
[426568216,1782598240000,-220.37355741,0.0002493,2]
[426568215,1782598240000,-258.13,0.00024775,7]
[426568218,1782598240000,-316.81347067,0.0002493,2]
[426568217,1782598240000,-175.25720723,0.0002493,2]
[426568221,1782598240000,-216.71705245,0.0002493,2]
[426568219,1782598240000,-349.55771238,0.0002493,2]
[426568220,1782598240000,-305.97785712,0.0002493,2]
[426568227,1782598240000,-397.89941503,0.00025,2]
[426568212,1782598240000,-181.9,0.00024658,2]
[426568222,1782598240000,-358.54914713,0.0002493,2]
[426568224,1782598240000,-197.92733585,0.00024942,2]
[426568226,1782598240000,-240.0,0.00025,2]
[426568229,1782598240000,-214.0,0.00025,2]
[426568231,1782598240000,-498.5007132,0.00025249,2]
[426568228,1782598240000,-54501.56208891,0.00025,2]
[426568232,1782598240000,-3354.96848159,0.00025511,2]
[426568230,1782598240000,-668.0,0.00025,2]
[426568233,1782598240000,-498.5007132,0.00025523,2]
[426568235,1782598240000,-681.87592894,0.00025755,2]
[426568234,1782598240000,-1331.34638524,0.00025617,2]
[426568179,1782598240000,-500.0,0.00023563,7]
[426568225,1782598240000,-498.5007132,0.00024975,2]
[426568210,1782598240000,-498.5007132,0.00024427,2]
[426568223,1782598240000,-305.44765194,0.0002493,2]
[426568208,1782598240000,-156.45618948,0.0002429,2]
[426568184,1782598240000,-174.77885619,0.00023672,2]
[426568209,1782598240000,-3354.96848159,0.00024389,2]
[426568182,1782598240000,-498.5007132,0.00023605,2]
[426568186,1782598240000,-179.27457356,0.00023672,2]
[426568185,1782598240000,-152.98892856,0.00023672,2]
[426568187,1782598240000,-152.72382597,0.00023672,2]
[426568189,1782598240000,-1331.34638524,0.00023991,2]
[426568190,1782598240000,-584.84510421,0.00023999,2]
[426568191,1782598240000,-496.14,0.00023999,2]
[426568192,1782598240000,-500.0,0.00023999,2]
[426568194,1782598240000,-382.0,0.00024,2]
[426568196,1782598240000,-129633.62687944,0.00024,2]
[426568195,1782598240000,-158.0,0.00024,2]
[426568188,1782598240000,-498.5007132,0.00023879,2]
[426568207,1782598240000,-11303.47,0.00024174,2]
[426568205,1782598240000,-504.71,0.00024174,2]
[426568193,1782598240000,-232.0,0.00024,2]
[426568206,1782598240000,-936.37,0.00024174,2]
[426568203,1782598240000,-150.0,0.00024115,7]
[426568202,1782598240000,-150.0,0.00024115,7]
[426568204,1782598240000,-498.5007132,0.00024153,2]
[426568199,1782598240000,-658.0,0.00024,2]
[426568198,1782598240000,-500.0,0.00024,2]
[426568200,1782598240000,-363.27,0.0002411,2]
[426568197,1782598240000,-212.0,0.00024,2]
[426568201,1782598240000,-244.6,0.0002411,2]
[426568269,1782598241000,-201.28030508,0.00025781,2]
[426568276,1782598241000,-1421437.32888187,0.000258,2]
[426568275,1782598241000,-348.39,0.00025799,2]
[426568272,1782598241000,-492.56770351,0.00025781,2]
[426568271,1782598241000,-395.8546717,0.00025781,2]
[426568268,1782598241000,-156.54802182,0.00025781,2]
[426568273,1782598241000,-222.88255222,0.0002579,2]
[426568270,1782598241000,-167.01686546,0.00025781,2]
[426568264,1782598241000,-211.90926979,0.00025772,2]
[426568278,1782598241000,-791.15940053,0.00026,2]
[426568274,1782598241000,-498.5007132,0.00025797,2]
[426568277,1782598241000,-12737.30749932,0.00025967,2]
[426568290,1782598241000,-633.62694133,0.00026328,2]
[426568281,1782598241000,-498.5007132,0.00026071,2]
[426568283,1782598241000,-791.15940053,0.00026222,2]
[426568284,1782598241000,-169.55,0.00026303,2]
[426568280,1782598241000,-259.48,0.00026027,7]
[426568285,1782598241000,-500.0,0.00026323,2]
[426568286,1782598241000,-220.83610414,0.00026328,2]
[426568282,1782598241000,-150.0,0.00026103,5]
[426568288,1782598241000,-465.04504481,0.00026328,2]
[426568291,1782598241000,-611.95571423,0.00026328,2]
[426568287,1782598241000,-471.21874113,0.00026328,2]
[426568289,1782598241000,-525.7716217,0.00026328,2]
[426568267,1782598241000,-186.07020032,0.00025781,2]
[426568279,1782598241000,-550.0,0.00026,2]
[426568266,1782598241000,-158.33045069,0.00025772,2]
[426568236,1782598241000,-991.95229698,0.00025755,2]
[426568261,1782598241000,-260.97460913,0.00025772,2]
[426568237,1782598241000,-235.60937056,0.00025769,2]
[426568238,1782598241000,-232.52252241,0.00025769,2]
[426568240,1782598241000,-475.220206,0.00025769,2]
[426568239,1782598241000,-350.51441447,0.00025769,2]
[426568242,1782598241000,-157.36706507,0.00025769,2]
[426568243,1782598241000,-219.10330004,0.00025769,2]
[426568241,1782598241000,-458.96678568,0.00025769,2]
[426568246,1782598241000,-243.25035838,0.00025769,2]
[426568245,1782598241000,-184.41647312,0.00025769,2]
[426568244,1782598241000,-269.0789184,0.00025769,2]
[426568247,1782598241000,-433.4341049,0.00025769,2]
[426568248,1782598241000,-537.82372069,0.00025769,2]
[426568265,1782598241000,-316.54028603,0.00025772,2]
[426568251,1782598241000,-524.33656857,0.00025769,2]
[426568252,1782598241000,-206.05930214,0.00025771,2]
[426568249,1782598241000,-458.17147792,0.00025769,2]
[426568254,1782598241000,-164.01567634,0.00025771,2]
[426568253,1782598241000,-182.70277295,0.00025771,2]
[426568257,1782598241000,-238.98219197,0.00025772,2]
[426568255,1782598241000,-161.88142284,0.00025771,2]
[426568256,1782598241000,-579.76973737,0.00025771,2]
[426568295,1782598241000,-533.87948699,0.00026328,2]
[426568260,1782598241000,-165.82112764,0.00025772,2]
[426568263,1782598241000,-228.92768709,0.00025772,2]
[426568258,1782598241000,-287.16513007,0.00025772,2]
[426568262,1782598241000,-215.58755629,0.00025772,2]
[426568250,1782598241000,-440.74711482,0.00025769,2]
[426568292,1782598241000,-154.47029239,0.00026328,2]
[426568259,1782598241000,-262.08472975,0.00025772,2]
[426568296,1782598241000,-481.10708799,0.00026328,2]
[426568323,1782598241000,-219.43357672,0.0002633,2]
[426568328,1782598241000,-169.72377252,0.0002633,2]
[426568327,1782598241000,-168.79955504,0.0002633,2]
[426568330,1782598241000,-166.40859567,0.0002633,2]
[426568329,1782598241000,-151.03583196,0.0002633,2]
[426568332,1782598241000,-240.06100062,0.0002633,2]
[426568331,1782598241000,-152.49346935,0.0002633,2]
[426568333,1782598241000,-477.96438393,0.00026332,2]
[426568334,1782598241000,-574.33026015,0.00026332,2]
[426568336,1782598241000,-221.01631383,0.00026332,2]
[426568338,1782598241000,-521.94921826,0.00026332,2]
[426568335,1782598241000,-524.1694595,0.00026332,2]
[426568326,1782598241000,-171.68252032,0.0002633,2]
[426568337,1782598241000,-331.64225527,0.00026332,2]
[426568340,1782598241000,-423.81853957,0.00026332,2]
[426568343,1782598241000,-316.66090138,0.00026332,2]
[426568345,1782598241000,-438.96510715,0.00026332,2]
[426568342,1782598241000,-466.84998261,0.00026332,2]
[426568344,1782598241000,-441.67220829,0.00026332,2]
[426568341,1782598241000,-158.27014302,0.00026332,2]
[426568350,1782598241000,-165.29665331,0.0002634,2]
[426568347,1782598241000,-299.96146335,0.0002634,2]
[426568346,1782598241000,-175.94159109,0.0002634,2]
[426568349,1782598241000,-386.44557875,0.0002634,2]
[426568348,1782598241000,-409.26730357,0.0002634,2]
[426568351,1782598241000,-213.87707886,0.0002634,2]
[426568339,1782598241000,-448.10711115,0.00026332,2]
[426568325,1782598241000,-229.17957011,0.0002633,2]